bitfinex/quotes_ETHUSD_20260106
["timestamp","ask_amount","ask_price","bid_price","bid_amount"]
[1767716101571,0.801,3263.8,3262.9,0.97237718]
[1767716101871,3.06381935,3263.9,3262.9,0.97237718]
[1767716102071,0.61368416,3263.8,3262.9,0.97237718]
[1767716102274,0.002,3264.4,3263.0,0.97237718]
[1767716103859,0.002,3264.8,3264.2,0.97237718]
[1767716105879,0.002,3264.8,3264.2,4.03587692]
[1767716106077,0.002,3264.8,3264.3,0.40358769]
[1767716106381,0.002,3264.8,3264.0,3.06369097]
[1767716106765,0.002,3264.8,3264.1,3.06363135]
[1767716106966,0.002,3264.8,3264.0,3.06370191]
[1767716107312,0.002,3264.8,3263.5,0.97237718]
[1767716107313,0.93299811,3264.8,3263.5,0.97237718]
[1767716107572,0.93099811,3263.9,3262.6,4.03740978]
[1767716107772,1.76299366,3263.9,3262.7,0.40384098]
[1767716107974,3.06391322,3263.8,3262.7,3.46876049]
[1767716108477,3.06391322,3263.8,3262.7,0.40384098]
[1767716108662,3.06391322,3263.8,3262.6,0.97237718]
[1767716108864,3.86486131,3263.9,3262.8,0.97237718]
[1767716109264,3.06386131,3263.9,3262.8,0.97237718]
[1767716110279,3.06386131,3263.9,3262.8,4.03717064]
[1767716111058,0.03099555,3263.8,3262.8,0.97237718]
[1767716111250,0.03099555,3263.8,3262.9,1.3761069]
[1767716111461,3.06386131,3263.9,3262.9,1.3761069]
[1767716111661,0.801,3264.1,3263.0,0.97237718]
[1767716112062,0.93099811,3264.0,3262.9,0.40372972]
[1767716112279,3.06391322,3263.8,3262.9,0.40372972]
[1767716112485,3.06391322,3263.8,3262.6,0.97237718]
[1767716112781,3.06391322,3263.8,3262.7,3.06489454]
[1767716113078,7.05882455,3263.8,3262.6,0.97237718]
[1767716113482,0.93099811,3263.3,3262.5,0.001]
[1767716113653,1.73199811,3263.2,3262.5,0.001]
[1767716113853,0.93099811,3263.1,3262.5,0.001]
[1767716114578,9.19399323,3263.0,3262.5,0.001]
[1767716114778,6.12932882,3263.0,3262.5,0.001]
[1767716115276,0.93099811,3262.9,3261.6,0.97237718]
[1767716115681,0.93099811,3262.9,3261.5,0.799]
[1767716115873,1.94349724,3262.8,3261.6,0.38651481]
[1767716116753,0.93099811,3262.6,3261.2,0.97237718]
[1767716116958,0.801,3262.5,3261.2,0.97237718]
[1767716117158,0.801,3262.5,3261.3,3.06620015]
[1767716117458,0.93099811,3262.4,3260.7,3.06674423]
[1767716117653,0.93099811,3262.2,3260.8,3.37339366]
[1767716118356,0.93099811,3262.2,3260.8,0.30667442]
[1767716118560,0.801,3262.1,3261.1,3.06642205]
[1767716119256,0.93099811,3262.2,3260.8,6.13346418]
[1767716119457,0.801,3262.1,3260.9,0.97237718]
[1767716119653,1.73199811,3262.2,3261.0,0.9815874]
[1767716119985,4.79742325,3262.2,3261.0,0.9815874]
[1767716120282,0.93099811,3262.2,3261.0,0.9815874]
[1767716120461,3.99642123,3262.2,3261.0,0.9815874]
[1767716120665,3.99642123,3262.2,3261.1,0.001]
[1767716120868,0.93099811,3262.2,3261.1,0.001]
[1767716121271,0.801,3262.2,3261.3,0.97237718]
[1767716121582,0.801,3262.2,3261.4,0.71050891]
[1767716122284,0.93099811,3262.6,3261.4,1.68288609]
[1767716122472,0.17319981,3263.2,3261.5,0.97237718]
[1767716122473,0.801,3262.7,3261.5,0.97237718]
[1767716122789,0.03099555,3262.6,3261.5,0.97237718]
[1767716123489,3.06513409,3262.5,3261.5,0.97237718]
[1767716123784,7.06126629,3262.5,3261.4,0.71050891]
[1767716123985,0.96199366,3262.4,3261.4,3.06616702]
[1767716124185,0.96199366,3262.4,3261.4,3.06613972]
[1767716124589,0.96199366,3262.4,3261.5,3.06607359]
[1767716124790,0.96199366,3262.4,3261.4,3.06612857]
[1767716124963,0.96199366,3262.4,3261.5,3.06607315]
[1767716125261,0.96199366,3262.4,3261.6,0.30660732]
[1767716125458,4.02723144,3262.4,3261.6,0.30660732]
[1767716125657,0.96199366,3262.4,3261.6,3.37256796]
[1767716125862,0.93099811,3262.8,3261.6,7.1043177]
[1767716126064,3.06430502,3263.4,3261.9,0.9815874]
[1767716126263,3.06438268,3263.3,3261.9,0.9815874]
[1767716126483,0.03099555,3263.2,3261.9,0.9815874]
[1767716126862,0.93099811,3263.1,3261.7,0.00921022]
[1767716127183,0.93099811,3262.9,3261.6,3.86596064]
[1767716127381,0.96199366,3262.8,3261.6,6.93194052]
[1767716127563,3.06477148,3262.9,3261.7,0.9815874]
[1767716127893,0.801,3263.0,3261.7,0.9815874]
[1767716128086,1.35025775,3263.0,3261.8,0.79135279]
[1767716128290,1.35025775,3263.0,3261.5,3.06606524]
[1767716128291,0.93099811,3262.9,3261.5,3.06606524]
[1767716128490,0.93099811,3262.7,3261.1,0.97337718]
[1767716128685,0.96199366,3262.6,3261.4,3.06616543]
[1767716128885,0.96199366,3262.6,3261.5,3.06605843]
[1767716129081,0.03099555,3262.6,3261.6,3.06597041]
[1767716129285,0.93099811,3263.0,3261.7,1.37621194]
[1767716129466,6.12951668,3262.9,3261.7,4.44204627]
[1767716129663,3.06475834,3262.9,3261.7,7.50793215]
[1767716129994,3.06475834,3262.9,3261.7,4.44204627]
[1767716130165,3.06475834,3262.9,3261.7,7.50793215]
[1767716130366,3.06475834,3262.9,3261.8,0.75079322]
[1767716130661,3.06438268,3263.3,3261.9,0.97237718]
[1767716130872,3.86538268,3263.3,3261.9,0.97237718]
[1767716131195,0.03099555,3263.2,3261.9,0.97237718]
[1767716131591,0.9622361,3263.7,3262.1,0.93038502]
[1767716131769,0.9622361,3263.7,3262.3,0.93038502]
[1767716131770,3.06410099,3263.6,3262.3,0.93038502]
[1767716131966,4.02625245,3263.7,3262.3,0.93038502]
[1767716132391,7.0902688,3263.7,3262.3,0.93038502]
[1767716133262,4.02625245,3263.7,3262.3,0.93038502]
[1767716133695,4.02625245,3263.7,3262.4,7.06084112]
[1767716133897,4.02625245,3263.7,3262.5,0.70608411]
[1767716134267,7.0902688,3263.7,3262.5,0.70608411]
[1767716134589,4.02625245,3263.7,3262.5,0.70608411]
[1767716135419,0.9622361,3263.7,3262.5,1.63646913]
[1767716135572,0.9622361,3264.3,3262.8,0.93038502]
[1767716135898,0.03099555,3264.2,3262.9,0.93038502]
[1767716136098,1.26868483,3264.3,3262.9,0.93038502]
[1767716136475,0.99323165,3264.2,3262.9,0.93038502]
[1767716136775,0.9622361,3264.1,3262.6,3.06499707]
[1767716136987,0.9622361,3263.9,3262.3,3.06526648]
[1767716137183,0.9622361,3263.7,3262.2,0.93038502]
[1767716137383,0.9622361,3263.5,3262.2,0.93038502]
[1767716137565,0.99323165,3263.4,3262.2,3.99574926]
[1767716137770,3.06438268,3263.3,3262.3,0.39957493]
[1767716137981,7.09100146,3263.3,3262.3,0.39957493]
[1767716138190,0.9622361,3263.1,3261.6,0.002]
[1767716138407,0.9622361,3262.9,3261.6,3.06793622]
[1767716138573,0.03099555,3262.8,3261.7,3.06586095]
[1767716139108,0.9622361,3262.9,3261.8,3.0657883]
[1767716139270,0.9622361,3262.9,3261.6,0.002]
[1767716139471,0.03099555,3262.8,3261.6,0.40184643]
[1767716139672,3.06494621,3262.7,3261.6,3.46782116]
[1767716140687,0.9622361,3262.8,3261.6,6.53380104]
[1767716141206,0.9622361,3262.8,3261.6,7.46418606]
[1767716141391,0.9622361,3263.3,3261.7,0.93038502]
[1767716141596,0.801,3263.0,3261.8,1.67680363]
[1767716141910,0.9622361,3262.8,3261.8,0.74641861]
[1767716142109,0.03099555,3262.7,3261.6,0.002]
[1767716142404,0.03099555,3262.7,3261.6,3.06791861]
[1767716142701,0.9622361,3262.8,3261.7,3.06587976]
[1767716142901,0.9622361,3262.8,3261.6,3.06796904]
[1767716143082,1.75151138,3262.8,3261.7,3.37265071]
[1767716143903,3.06494621,3262.7,3261.7,3.37265071]
[1767716144207,3.06494621,3262.7,3261.7,0.3067969]
[1767716144577,3.06494621,3262.7,3261.7,3.06586681]
[1767716144997,4.02711294,3262.8,3261.7,3.06586681]
[1767716145204,0.9622361,3262.8,3261.7,7.06213771]
[1767716145508,3.06457951,3263.1,3261.8,0.96104171]
[1767716145677,3.06457951,3263.1,3262.0,0.93038502]
[1767716145881,6.12876536,3263.3,3262.0,4.7959186]
[1767716146182,6.12876536,3263.3,3262.0,4.7969186]
[1767716146504,3.06438268,3263.3,3262.1,0.93038502]
[1767716146699,3.06438268,3263.3,3262.2,0.03065415]
[1767716146876,7.0898748,3263.9,3262.2,0.96103917]
[1767716147078,8.44006228,3263.9,3262.2,0.96103917]
[1767716147279,8.44006228,3263.9,3262.4,0.93038502]
[1767716147607,8.44006228,3263.9,3262.4,0.9610373]
[1767716148103,8.44006228,3263.9,3262.6,0.93038502]
[1767716148310,8.44006228,3263.9,3262.6,1.73038502]
[1767716148507,0.03099555,3263.8,3262.8,0.93038502]
[1767716148684,0.002,3264.0,3262.8,0.93038502]
[1767716149395,0.002,3264.3,3263.4,0.93038502]
[1767716150289,0.002,3264.3,3263.5,3.06419488]
[1767716150493,0.002,3264.3,3263.6,0.39945799]
[1767716151112,0.002,3264.3,3263.3,3.86433389]
[1767716151706,0.002,3264.3,3263.3,3.86436532]
[1767716151908,0.002,3264.3,3263.3,0.8]
[1767716152313,0.03299555,3264.3,3263.3,0.8]
[1767716152609,0.03299555,3264.3,3263.0,0.93038502]
[1767716152796,0.99523165,3264.3,3263.1,0.39951287]
[1767716152999,0.99523165,3264.3,3263.0,1.73038502]
[1767716153201,0.99523165,3264.3,3263.2,3.06447641]
[1767716153794,0.99523165,3264.3,3263.1,3.06452792]
[1767716154019,0.99523165,3264.3,3263.2,3.06447637]
[1767716154313,0.99523165,3264.3,3263.1,3.06452836]
[1767716154314,3.06353777,3264.2,3263.1,3.06452836]
[1767716154615,0.03099555,3264.1,3263.2,0.47949134]
[1767716154905,0.03099555,3264.1,3263.0,4.79503646]
[1767716155114,0.03099555,3264.1,3263.0,7.85970087]
[1767716155426,3.06353777,3264.2,3263.0,7.85970087]
[1767716155586,3.06353777,3264.2,3263.0,4.79503646]
[1767716155782,6.12707554,3264.2,3263.0,1.73038502]
[1767716156111,0.99323165,3264.1,3263.0,0.8]
[1767716156476,7.08968708,3264.0,3262.7,0.93038502]
[1767716156721,0.99323165,3263.9,3262.5,0.8]
[1767716156894,0.99323165,3263.9,3262.5,3.86512894]
[1767716157097,0.99323165,3263.9,3262.5,0.8]
[1767716157295,0.98994224,3263.7,3262.5,0.8]
[1767716157683,0.98994224,3263.7,3262.6,3.06499394]
[1767716157684,1.79094224,3263.7,3262.6,3.06499394]
[1767716158000,0.801,3263.9,3262.7,0.91403489]
[1767716158380,3.06391322,3263.8,3262.7,3.97892699]
[1767716158585,6.12782644,3263.8,3262.7,0.91403489]
[1767716158913,6.82070908,3263.8,3262.7,1.69845082]
[1767716159302,6.82070908,3263.8,3262.7,4.76337043]
[1767716159696,6.82070908,3263.8,3263.3,0.001]
[1767716160316,3.75679586,3263.8,3263.3,0.001]
[1767716160815,3.06391322,3263.8,3263.3,0.001]
[1767716161017,0.002,3264.0,3263.3,0.001]
[1767716161313,3.06575123,3264.0,3263.3,0.001]
[1767716161485,6.12950246,3264.0,3263.3,0.001]
[1767716161882,0.99857105,3263.9,3262.0,0.001]
[1767716162214,0.99857105,3263.8,3262.4,3.06520676]
[1767716162413,7.12677303,3263.6,3262.3,3.99705184]
[1767716162584,3.67680212,3263.9,3262.8,0.00921022]
[1767716162585,1.6115213,3263.9,3262.8,0.00921022]
[1767716162910,0.99857105,3263.9,3262.8,0.00921022]
[1767716163111,3.06383219,3263.9,3262.8,0.94103396]
[1767716163424,0.002,3264.0,3263.5,0.93182374]
[1767716163713,0.002,3264.3,3263.6,0.00921022]
[1767716163914,0.002,3264.3,3263.8,0.94103396]
[1767716164090,0.002,3264.3,3264.0,0.94103396]
[1767716164282,0.00099602,3264.8,3264.0,0.94103396]
[1767716164696,0.00099602,3264.8,3264.0,4.00475574]
[1767716164919,0.00099602,3264.8,3264.2,0.94103396]
[1767716165321,0.00099602,3264.8,3264.5,0.00921022]
[1767716165509,0.00099602,3264.8,3264.5,0.94103396]
[1767716166014,3.06225725,3265.6,3264.5,0.94103396]
[1767716166221,0.002,3265.7,3264.6,0.8]
[1767716166394,0.002,3265.7,3264.7,0.18331362]
[1767716166601,0.002,3265.7,3264.8,3.06297476]
[1767716166829,0.002,3265.7,3264.7,4.17816903]
[1767716167119,0.03299555,3265.7,3264.7,1.11513736]
[1767716167498,0.002,3265.7,3264.7,4.17819733]
[1767716167817,0.30840405,3265.7,3264.7,4.17819737]
[1767716168408,0.30840405,3265.7,3264.7,3.246378]
[1767716168409,0.3393996,3265.7,3264.7,3.246378]
[1767716168714,0.002,3265.7,3264.8,0.93182374]
[1767716168915,0.002,3265.7,3264.9,0.00921022]
[1767716170429,3.0642125,3265.7,3264.9,0.8]
[1767716171320,0.002,3265.4,3264.9,0.8]
[1767716171696,0.002,3265.4,3264.9,3.86187792]
[1767716171901,0.002,3265.4,3264.9,4.5727032]
[1767716172217,0.002,3265.4,3264.9,5.51373716]
[1767716172417,0.002,3265.7,3264.9,5.51373716]
[1767716172418,0.002,3265.7,3265.2,0.93182374]
[1767716174206,0.002,3265.7,3265.1,0.799]
[1767716175021,0.002,3265.7,3265.3,0.93182374]
[1767716175221,0.002,3265.7,3265.3,1.41208103]
[1767716175520,0.002,3265.7,3265.4,0.94103396]
[1767716175999,0.002,3266.2,3265.5,3.99414191]
[1767716176195,0.002,3266.2,3265.6,0.93182374]
[1767716176599,0.002,3266.2,3265.4,0.00921022]
[1767716176810,1.00057105,3266.2,3265.0,0.93182374]
[1767716177125,1.00057105,3266.2,3264.6,1.73082374]
[1767716177126,0.99857105,3266.0,3264.6,1.73082374]
[1767716177288,0.99857105,3265.8,3264.6,0.93182374]
[1767716177486,0.03099555,3265.7,3264.6,2.1312458]
[1767716177692,1.0295666,3265.7,3264.6,0.93182374]
[1767716177995,3.06222439,3265.6,3264.6,0.93182374]
[1767716178313,0.99857105,3265.7,3264.7,0.93182374]
[1767716178314,6.12428274,3265.7,3264.7,0.93182374]
[1767716180223,1.0295666,3265.6,3264.6,0.799]
[1767716180520,2.02017012,3265.5,3264.3,1.73082374]
[1767716180720,0.03099555,3265.4,3264.3,1.73082374]
[1767716181622,1.0295666,3265.4,3264.3,0.93182374]
[1767716181827,1.0295666,3265.4,3264.3,0.799]
[1767716182213,4.08400247,3265.5,3264.4,3.99514951]
[1767716182531,3.06226181,3265.6,3264.6,0.93182374]
[1767716182712,4.06227256,3266.2,3264.9,0.93182374]
[1767716182918,3.06370151,3266.2,3265.1,0.93182374]
[1767716183102,0.002,3266.2,3265.2,0.00921022]
[1767716183304,0.002,3266.2,3265.2,0.94103396]
[1767716183505,0.002,3266.2,3265.4,0.00921022]
[1767716183821,0.002,3266.2,3265.5,0.799]
[1767716184527,0.002,3265.4,3265.2,0.93182374]
[1767716184831,0.002,3265.7,3265.3,0.799]
[1767716185121,0.002,3265.7,3265.4,0.38708025]
[1767716185425,0.002,3265.7,3265.4,0.799]
[1767716186322,0.002,3265.7,3265.2,0.00921022]
[1767716186625,0.002,3265.7,3264.5,0.87893922]
[1767716186940,1.8325666,3265.7,3264.6,0.001]
[1767716187098,0.99857105,3265.6,3264.6,0.001]
[1767716187421,0.99857105,3265.4,3264.6,0.001]
[1767716187609,0.99857105,3265.2,3264.6,0.001]
[1767716188191,0.18325666,3265.5,3264.6,0.001]
[1767716188436,3.06241195,3265.4,3264.6,0.001]
[1767716189019,0.99857105,3265.3,3264.6,0.001]
[1767716189227,0.03099555,3265.2,3264.6,0.001]
[1767716190126,3.06241195,3265.4,3264.6,0.001]
[1767716190425,6.12444878,3265.6,3264.6,0.001]
[1767716190595,0.71250198,3265.5,3264.6,0.001]
[1767716191929,0.03099555,3265.4,3264.6,0.001]
[1767716193028,3.06250574,3265.3,3264.6,0.001]
[1767716194704,3.01250574,3265.3,3264.6,0.001]
[1767716195310,3.0934075,3265.4,3264.6,0.001]
[1767716195632,3.47399845,3265.4,3264.6,0.001]
[1767716195939,6.53641367,3265.4,3264.6,0.001]
[1767716196152,3.4430029,3265.4,3264.6,0.001]
[1767716196518,6.53641367,3265.4,3264.6,0.001]
[1767716196718,7.41611608,3265.4,3264.6,0.001]
[1767716196909,0.91069796,3265.2,3264.6,0.001]
[1767716197111,0.94169351,3265.1,3264.6,0.001]
[1767716197315,0.91069796,3264.9,3264.6,0.001]
[1767716197550,3.06278713,3265.0,3264.6,0.001]
[1767716197926,10.09905935,3265.0,3264.6,0.001]
[1767716198141,0.91069796,3264.8,3263.4,0.95164781]
[1767716198360,0.91069796,3264.8,3262.8,0.00921022]
[1767716198651,0.91069796,3264.8,3262.6,4.02585501]
[1767716198851,0.91069796,3264.8,3262.7,0.799]
[1767716199010,0.91069796,3264.6,3262.7,0.799]
[1767716199208,0.91069796,3264.2,3262.8,0.4824855]
[1767716199639,0.91069796,3264.2,3262.7,0.799]
[1767716199813,0.91069796,3264.2,3262.7,3.86388097]
[1767716200220,0.91069796,3264.2,3262.8,3.06485116]
[1767716200533,0.91069796,3264.2,3262.7,3.86387843]
[1767716201242,7.0379612,3264.1,3262.7,3.86387843]
[1767716201434,7.0379612,3264.1,3262.8,0.48247365]
[1767716201435,1.92085058,3264.0,3262.8,0.48247365]
[1767716202216,0.801,3263.9,3262.2,4.02621117]
[1767716202414,0.91069796,3263.8,3262.3,0.799]
[1767716202644,0.91069796,3263.8,3262.4,0.95164781]
[1767716202819,0.91069796,3263.8,3262.5,0.95164781]
[1767716203755,6.1280142,3263.7,3262.5,0.95164781]
[1767716203938,1.61456918,3263.6,3262.5,0.17506478]
[1767716204127,1.61456918,3263.6,3262.3,1.75064781]
[1767716204453,1.61456918,3263.6,3262.3,0.95164781]
[1767716204749,0.91069796,3263.5,3262.0,0.001]
[1767716205122,0.91069796,3263.5,3262.0,3.06659927]
[1767716205318,0.91069796,3263.5,3262.1,0.95164781]
[1767716205522,0.91069796,3263.5,3262.2,0.95164781]
[1767716205750,6.12857754,3263.4,3262.3,1.3533594]
[1767716206722,6.12857754,3263.4,3262.3,4.4278717]
[1767716207052,6.12846384,3263.5,3262.6,0.95164781]
[1767716207351,3.06423192,3263.5,3262.6,0.95164781]
[1767716207597,6.12846384,3263.5,3262.6,0.95164781]
[1767716207722,6.12846384,3263.5,3262.7,0.17516478]
[1767716208053,6.1280142,3263.7,3262.7,0.17516478]
[1767716209051,0.94169351,3263.6,3262.6,0.001]
[1767716209723,0.91069796,3263.4,3262.6,0.001]
[1767716210025,0.801,3263.5,3262.6,0.001]
[1767716210026,3.0645705,3263.1,3262.6,0.001]
[1767716210226,6.129141,3263.1,3262.6,0.001]
[1767716210556,0.801,3263.5,3262.6,0.001]
[1767716210721,1.27857453,3263.5,3262.6,0.001]
[1767716210923,3.06429862,3263.4,3262.6,0.001]
[1767716211342,6.12859724,3263.4,3262.6,0.001]
[1767716211550,0.03099555,3263.3,3262.6,0.001]
[1767716212651,3.06447658,3263.2,3262.6,0.001]
[1767716213356,0.03099555,3263.1,3262.6,0.001]
[1767716213533,6.12895316,3263.2,3262.6,0.001]
[1767716213731,6.15994871,3263.2,3262.6,0.001]
[1767716214349,7.65564599,3263.2,3262.6,0.001]
[1767716214553,0.91069796,3262.9,3262.0,0.001]
[1767716214751,0.91069796,3262.7,3262.0,0.001]
[1767716215463,0.91069796,3262.7,3261.6,0.002]
[1767716215634,0.91069796,3262.5,3261.6,0.002]
[1767716215963,0.91069796,3262.3,3261.6,0.002]
[1767716216536,0.91069796,3262.1,3261.1,0.001]
[1767716216852,0.91069796,3261.9,3261.1,0.001]
[1767716218850,0.990358,3261.7,3261.1,0.001]
[1767716220138,3.06579189,3261.8,3261.1,0.001]
[1767716220337,0.802,3261.9,3261.1,0.001]
[1767716220846,9.19568415,3262.4,3261.1,0.94720923]
[1767716221047,0.990358,3262.2,3261.1,0.001]
[1767716221250,0.990358,3262.1,3261.1,0.001]
[1767716221448,1.85159977,3262.3,3261.4,0.002]
[1767716221650,1.82060422,3262.3,3261.4,0.002]
[1767716221872,0.95690963,3262.9,3261.4,0.9788886]
[1767716222371,6.93119478,3263.1,3261.8,0.9768886]
[1767716222669,6.12919478,3263.1,3261.8,0.9768886]
[1767716222869,0.95690963,3262.8,3261.4,4.04504407]
[1767716223168,0.95690963,3262.6,3261.5,0.40450441]
[1767716223370,0.70864263,3262.7,3261.4,0.9788886]
[1767716223540,0.802,3262.8,3261.6,0.9768886]
[1767716223735,0.802,3262.8,3261.6,0.99233297]
[1767716223938,0.802,3262.8,3261.6,0.9768886]
[1767716224133,0.03099555,3262.7,3261.6,0.9768886]
[1767716224466,0.802,3262.8,3261.7,0.40429263]
[1767716224877,6.1300803,3262.6,3261.7,0.40429263]
[1767716225053,0.03099555,3262.5,3261.4,3.06816244]
[1767716226191,3.06471919,3263.0,3261.4,3.06816244]
[1767716226192,0.95690963,3263.1,3261.5,0.9768886]
[1767716226347,7.88805063,3263.1,3261.8,0.9768886]
[1767716226674,0.03099555,3263.0,3261.8,0.9768886]
[1767716226852,0.03099555,3263.0,3261.9,0.40427047]
[1767716227255,6.12951668,3262.9,3261.9,0.40427047]
[1767716227578,0.03099555,3262.8,3261.8,0.9768886]
[1767716227940,3.09575389,3262.9,3261.8,4.04266645]
[1767716228179,3.09568132,3263.0,3261.9,3.065684]
[1767716228362,3.06468577,3263.0,3261.9,3.065684]
[1767716228562,3.06468577,3263.0,3261.8,0.9768886]
[1767716228563,6.12937154,3263.0,3261.8,4.04264313]
[1767716228877,3.06468577,3263.0,3261.9,4.44776713]
[1767716229176,3.06468577,3263.0,3262.0,0.9768886]
[1767716229360,6.12937154,3263.0,3262.0,0.9768886]
[1767716229545,3.06468577,3263.0,3262.0,0.9768886]
[1767716230273,3.06468577,3263.0,3262.0,4.0424586]
[1767716230480,4.48247426,3263.2,3262.1,1.42165299]
[1767716230667,3.06457223,3263.1,3262.1,1.42165299]
[1767716230878,3.68048257,3263.2,3262.1,1.42165299]
[1767716231050,6.74497027,3263.2,3262.1,1.42165299]
[1767716231363,3.06410099,3263.6,3262.4,0.9768886]
[1767716231564,1.75890963,3264.0,3262.6,0.9768886]
[1767716232946,6.12743494,3264.1,3262.8,0.9768886]
[1767716233151,3.06371461,3264.1,3262.8,0.9768886]
[1767716233354,3.06344392,3264.3,3262.8,0.98609882]
[1767716234662,3.0631624,3264.6,3263.4,0.9768886]
[1767716234895,3.4651696,3264.6,3263.6,3.06410099]
[1767716235103,3.4651696,3264.6,3263.5,4.04107536]
[1767716235395,6.528332,3264.6,3263.5,0.9768886]
[1767716235969,3.4651696,3264.6,3263.5,4.04108014]
[1767716236184,6.528332,3264.6,3263.5,0.9768886]
[1767716236357,0.74852416,3264.5,3263.5,0.9768886]
[1767716236557,0.74852416,3264.5,3263.5,4.04107483]
[1767716237495,3.81185959,3264.5,3263.5,0.9768886]
[1767716238012,4.76876922,3264.5,3263.5,4.04108296]
[1767716238322,0.98790518,3264.4,3263.4,0.8]
[1767716238601,0.95690963,3264.3,3262.9,0.8]
[1767716238768,0.95690963,3264.1,3262.9,0.8]
[1767716238971,0.95690963,3263.9,3262.7,0.8]
[1767716239197,0.95690963,3263.9,3262.7,0.97768886]
[1767716239358,7.08473607,3263.8,3262.7,0.97768886]
[1767716239558,4.02082285,3263.8,3262.7,4.04258588]
[1767716239997,4.02082285,3263.8,3262.7,4.0517961]
[1767716240383,4.02082285,3263.8,3262.7,0.97768886]
[1767716240585,0.40518184,3263.7,3262.7,0.97768886]
[1767716240897,0.95690963,3263.6,3262.7,0.97768886]
[1767716241086,0.40518184,3263.7,3262.2,3.06534648]
[1767716241087,0.95690963,3263.4,3262.2,3.06534648]
[1767716241260,3.06438268,3263.3,3262.3,0.80921022]
[1767716241476,0.95690963,3263.2,3262.3,3.86528555]
[1767716241675,3.06432257,3263.4,3262.3,3.86528555]
[1767716242076,0.95690963,3263.3,3262.3,0.8]
[1767716242278,0.95690963,3263.1,3262.1,3.06545535]
[1767716242589,0.95690963,3263.1,3261.7,0.00921022]
[1767716242913,0.95690963,3263.1,3261.9,3.06568895]
[1767716243684,6.12932882,3263.0,3261.8,4.04266093]
[1767716244001,3.06466441,3263.0,3261.8,4.04266093]
[1767716244192,3.81349208,3263.0,3261.9,0.79176864]
[1767716244508,3.81349208,3263.0,3261.9,0.80097886]
[1767716244810,3.4666194,3263.2,3262.0,0.9768886]
[1767716244811,0.40212322,3263.2,3262.0,0.9768886]
[1767716245133,3.06438268,3263.3,3262.2,0.9768886]
[1767716245715,3.06438268,3263.3,3262.3,3.06532201]
[1767716245899,0.95690963,3263.4,3262.3,3.06532201]
[1767716245900,0.001,3262.9,3262.4,0.9768886]
[1767716246314,0.001,3262.9,3261.9,0.79176864]
[1767716246486,0.001,3262.9,3262.0,0.8]
[1767716246682,0.001,3262.9,3262.1,3.06548266]
[1767716246988,0.001,3262.9,3262.1,0.9768886]
[1767716247192,0.001,3262.9,3262.2,4.04225529]
[1767716247391,0.001,3262.9,3262.1,3.06547887]
[1767716247712,3.06575834,3262.9,3262.0,0.8]
[1767716247917,3.06575834,3262.9,3262.0,1.28425646]
[1767716248119,0.001,3262.9,3262.0,4.34983049]
[1767716248612,0.001,3262.9,3262.1,0.9768886]
[1767716249528,0.95690963,3263.8,3262.3,0.9768886]
[1767716249691,6.1280142,3263.7,3262.5,0.9768886]
[1767716249893,6.1280142,3263.7,3262.2,0.00921022]
[1767716249894,1.66540201,3263.6,3262.2,0.00921022]
[1767716250127,0.98790518,3263.5,3262.1,0.00921022]
[1767716250310,0.98790518,3263.5,3262.0,0.8]
[1767716251424,0.94305747,3263.3,3261.3,0.00921022]
[1767716251724,0.70849238,3263.6,3261.9,0.00921022]
[1767716251725,0.94305747,3263.1,3261.9,0.00921022]
[1767716251931,0.94305747,3263.3,3262.3,0.00921022]
[1767716252134,3.06447658,3263.2,3262.5,0.00921022]
[1767716252319,3.09547213,3263.2,3262.5,0.00921022]
[1767716252518,3.09547213,3263.2,3262.3,0.00921022]
[1767716252826,6.15994871,3263.2,3262.5,0.00921022]
[1767716252999,0.79040062,3263.1,3262.5,0.00921022]
[1767716253631,0.94305747,3263.8,3262.7,0.00921022]
[1767716253828,6.12820198,3263.6,3262.9,0.00921022]
[1767716254039,3.06410099,3263.6,3262.9,0.00921022]
[1767716254200,6.12820198,3263.6,3262.9,0.00921022]
[1767716254531,6.91542793,3263.6,3262.9,0.00921022]
[1767716255336,3.85132694,3263.6,3262.9,0.00921022]
[1767716255628,3.06388013,3263.9,3263.2,0.00921022]
[1767716255930,6.12745098,3264.0,3263.2,0.00921022]
[1767716256107,3.09472104,3264.0,3263.2,0.00921022]
[1767716256311,0.47687692,3264.4,3263.6,0.00921022]
[1767716256511,0.94305747,3264.5,3263.8,0.00921022]
[1767716256737,1.64999848,3264.4,3263.8,0.00921022]
[1767716256902,0.97405302,3264.3,3263.8,0.00921022]
[1767716257429,0.94305747,3264.3,3263.8,0.00921022]
[1767716258015,3.06353777,3264.2,3263.6,0.00921022]
[1767716258330,3.06353777,3264.2,3263.2,0.00921022]
[1767716258331,0.94305747,3264.1,3263.2,0.00921022]
[1767716258500,0.48075952,3264.0,3263.5,0.00921022]
[1767716258700,1.42381699,3264.0,3263.5,0.00921022]
[1767716258903,0.001,3264.3,3263.9,0.00921022]
[1767716259152,0.002,3265.1,3264.1,0.00921022]
[1767716259303,0.002,3265.1,3264.5,0.00921022]
[1767716259499,0.002,3265.1,3264.7,0.00921022]
[1767716259736,0.002,3265.1,3264.5,0.00721022]
[1767716259737,6.52819132,3265.1,3264.5,0.00721022]
[1767716259938,6.52819132,3265.1,3264.3,0.00921022]
[1767716260236,3.46548213,3265.1,3264.5,0.00921022]
[1767716260412,0.94305747,3265.0,3264.3,0.00921022]
[1767716260615,0.94305747,3264.9,3263.9,0.00921022]
[1767716260814,0.83199555,3265.0,3264.1,0.00921022]
[1767716260815,0.94305747,3264.7,3264.1,0.00921022]
[1767716261838,0.94305747,3264.5,3263.3,0.8]
[1767716262141,0.94305747,3264.2,3263.3,0.8]
[1767716263511,0.94305747,3264.0,3263.3,0.8]
[1767716263718,0.94305747,3264.0,3262.8,0.00921022]
[1767716264034,0.94305747,3263.8,3262.8,0.00921022]
[1767716264220,0.71016917,3263.7,3262.8,0.00921022]
[1767716265009,0.03099555,3263.6,3262.8,0.00921022]
[1767716265516,0.94305747,3263.6,3262.8,0.00921022]
[1767716265924,0.94305747,3263.6,3263.0,0.00921022]
[1767716266127,0.94305747,3263.6,3263.2,0.00921022]
[1767716266128,0.16842222,3263.6,3263.2,0.00921022]
[1767716266332,3.06381935,3263.9,3263.2,0.00921022]
[1767716267040,0.94305747,3263.8,3263.0,0.00921022]
[1767716268253,3.0640071,3263.7,3263.0,0.00921022]
[1767716269142,0.94305747,3264.4,3263.2,0.00921022]
[1767716269534,0.94305747,3264.2,3263.2,0.00921022]
[1767716269728,0.94305747,3264.0,3263.2,0.00921022]